bitfinex/quotes_ETHUSD_20241001
["timestamp","ask_amount","ask_price","bid_price","bid_amount"]
[1727756323630,1.5732,2635.5,2635.2,0.08012419]
[1727756323824,5.36763,2635.5,2634.9,7.59028]
[1727756324061,5.36763,2635.5,2635.0,0.08018883]
[1727756324266,5.36763,2635.5,2635.0,3.87521883]
[1727756324477,1.5732,2635.5,2635.1,4.56193288]
[1727756324671,5.36759,2635.5,2635.1,0.76703288]
[1727756324971,5.36759,2635.5,2635.2,0.08012034]
[1727756324972,1.5732,2635.5,2635.2,0.08012034]
[1727756328133,1.5732,2635.5,2635.2,3.87489034]
[1727756328334,1.5732,2635.5,2635.3,0.84368232]
[1727756328727,1.5732,2635.5,2635.4,0.08005572]
[1727756330437,5.3782,2635.7,2635.4,0.08005572]
[1727756330682,9.17235,2635.7,2635.4,0.08005572]
[1727756330891,1.5841,2635.7,2635.4,0.08005572]
[1727756331057,5.37816,2635.7,2635.4,0.55948017]
[1727756331255,1.5841,2635.7,2635.4,0.55948017]
[1727756335299,1.5841,2635.7,2635.4,4.35396017]
[1727756335454,3.79352,2636.1,2635.5,0.07588246]
[1727756335654,1.6394,2636.1,2635.7,5.43208]
[1727756336096,1.6394,2636.1,2635.8,0.07993419]
[1727756340525,1.6394,2636.1,2635.8,3.87375419]
[1727756341042,1.62248639,2635.9,2635.8,0.07993419]
[1727756341229,1.62248639,2635.9,2635.5,1.5159]
[1727756341426,1.62248639,2635.9,2635.6,0.0798295]
[1727756342751,1.62248639,2635.9,2635.6,3.8739495]
[1727756342965,1.6647,2636.1,2635.7,3.79404]
[1727756343123,1.6647,2636.1,2635.7,3.87388336]
[1727756343315,1.6647,2636.1,2635.7,0.07984336]
[1727756345320,5.45826,2636.1,2635.7,0.07984336]
[1727756346141,1.6647,2636.1,2635.7,0.07984336]
[1727756346342,1.6545,2636.2,2635.8,3.79382]
[1727756346547,7.07011639,2636.4,2635.8,7.58762]
[1727756346846,10.86330639,2636.4,2635.9,0.07979415]
[1727756347264,5.44763,2636.4,2636.0,1.534]
[1727756347636,5.44763,2636.4,2636.1,0.07957949]
[1727756347835,1.6545,2636.4,2636.1,0.07957949]
[1727756351431,9.13055,2636.6,2636.1,0.07957949]
[1727756351724,3.79292,2636.5,2636.1,0.07957949]
[1727756352062,3.79306,2636.4,2636.1,0.07957949]
[1727756353325,1.62248639,2636.5,2636.1,0.07957949]
[1727756353528,5.41544639,2636.5,2636.1,0.07957949]
[1727756357374,5.33775,2636.6,2636.1,0.07957949]
[1727756357553,10.75312639,2636.6,2636.1,0.07957949]
[1727756358331,1.5834,2636.8,2636.2,1.512]
[1727756358676,3.79198,2637.2,2636.6,3.79262]
[1727756358862,3.79206,2637.1,2636.7,1.5681]
[1727756359063,5.41446639,2637.2,2636.7,1.64720882]
[1727756359228,3.79213,2637.1,2636.7,1.64720882]
[1727756359971,5.41446639,2637.2,2636.7,1.64720882]
[1727756360333,3.79198,2637.2,2636.7,5.43981882]
[1727756360529,3.79198,2637.2,2636.7,6.3630627]
[1727756360734,3.79176,2637.3,2636.8,3.79247]
[1727756361161,3.79176,2637.3,2636.9,0.07890582]
[1727756362747,3.0,2637.5,2637.0,1.5355]
[1727756362945,3.79169,2637.4,2637.0,1.5355]
[1727756363151,3.79169,2637.4,2637.1,0.07884128]
[1727756363470,3.14188639,2637.6,2637.1,0.07884128]
[1727756363471,5.3108,2637.6,2637.1,0.07884128]
[1727756363769,6.93328639,2637.6,2637.1,0.61948841]
[1727756364269,3.79154,2637.5,2637.1,0.61948841]
[1727756364469,3.79163,2637.4,2637.1,0.61948841]
[1727756367343,6.93328639,2637.6,2637.1,0.61948841]
[1727756367547,10.72469639,2637.6,2637.1,0.61948841]
[1727756367752,10.72469639,2637.6,2637.2,0.59471684]
[1727756368161,10.72469639,2637.6,2637.3,0.07866141]
[1727756368576,10.72469639,2637.6,2637.2,0.59471684]
[1727756368735,10.72469639,2637.6,2637.4,0.07829461]
[1727756369073,10.72469639,2637.6,2637.2,0.59471684]
[1727756369074,6.93328639,2637.6,2637.5,0.07826235]
[1727756369447,10.72472639,2637.6,2637.2,0.59471684]
[1727756369650,6.93328639,2637.6,2637.3,0.07832687]
[1727756369837,6.93328639,2637.6,2637.1,4.33265713]
[1727756370181,3.79091,2637.9,2637.3,1.5156]
[1727756370366,3.79051,2638.2,2637.7,3.79108]
[1727756370561,3.79051,2638.2,2637.8,1.5156]
[1727756370879,3.79051,2638.2,2637.8,1.5936618]
[1727756371170,7.58051,2638.4,2637.8,1.5936618]
[1727756371398,3.79023,2638.4,2637.8,1.66947834]
[1727756371537,3.26868639,2638.5,2637.9,1.586]
[1727756371538,3.79012,2638.5,2637.9,1.586]
[1727756371879,3.79012,2638.5,2638.0,0.0778359]
[1727756372372,3.79012,2638.5,2638.0,0.58237537]
[1727756373693,3.78943,2639.0,2638.4,5.41261639]
[1727756373934,3.78906,2639.2,2638.6,1.62248639]
[1727756374380,3.78906,2639.2,2638.7,0.07741816]
[1727756374537,3.78906,2639.2,2638.8,1.543]
[1727756374979,5.29829,2639.4,2638.9,0.07711947]
[1727756375147,5.34588,2639.6,2638.9,0.15290868]
[1727756375357,6.559288,2639.6,2638.9,3.94221853]
[1727756376037,3.78848,2639.6,2639.0,1.6445]
[1727756376244,3.78834,2639.7,2639.1,0.07689765]
[1727756377537,5.41082639,2639.7,2639.1,0.07689765]
[1727756377762,3.78834,2639.7,2639.1,0.07689765]
[1727756377950,3.78834,2639.7,2639.1,4.41710942]
[1727756378372,3.78816,2639.8,2639.2,0.07577097]
[1727756378580,5.39504,2639.9,2639.2,3.86476097]
[1727756378779,5.39504,2639.9,2639.3,0.07672576]
[1727756378968,3.78817,2639.8,2639.3,0.07672576]
[1727756379281,3.78817,2639.8,2639.1,4.34021177]
[1727756379469,3.78817,2639.8,2639.4,0.07572959]
[1727756379681,3.78817,2639.8,2639.2,0.59847118]
[1727756379884,3.78817,2639.8,2639.5,0.07569738]
[1727756380083,3.78836,2639.7,2639.2,0.59847118]
[1727756380263,8.89750358,2639.9,2639.6,0.07566518]
[1727756380465,3.7883,2639.7,2639.0,1.6445]
[1727756380661,3.78849,2639.6,2639.1,0.07583008]
[1727756381001,3.7883,2639.7,2639.1,3.86486008]
[1727756381179,3.7883,2639.7,2639.1,0.07583008]
[1727756381496,3.7883,2639.7,2639.1,3.86499008]
[1727756381693,3.7883,2639.7,2639.2,0.92986701]
[1727756382089,3.7883,2639.7,2639.2,1.00566487]
[1727756382674,3.78845,2639.6,2639.2,1.00566487]
[1727756383086,5.10936358,2639.9,2639.2,1.00566487]
[1727756383288,3.78812,2639.9,2639.4,1.6103]
[1727756383691,5.45419,2640.1,2639.5,0.07568587]
[1727756384012,1.6664,2640.1,2639.5,0.07568587]
[1727756384196,3.78812,2639.9,2639.5,0.07568587]
[1727756384559,7.57624,2639.9,2639.5,0.07568587]
[1727756384759,7.57626,2639.9,2639.5,0.07568587]
[1727756385000,3.7882,2639.8,2639.5,0.07568587]
[1727756387876,7.57627,2639.9,2639.5,0.07568587]
[1727756388617,3.78824,2639.8,2639.5,0.07568587]
[1727756389109,5.45422,2640.1,2639.6,3.78845]
[1727756389466,5.45422,2640.1,2639.7,0.07547184]
[1727756389669,3.78795,2640.0,2639.5,0.54748459]
[1727756389870,3.78795,2640.0,2639.6,0.07550404]
[1727756390105,5.45422,2640.1,2639.6,0.0745567]
[1727756390468,3.0,2640.2,2639.7,1.6506]
[1727756390668,3.78789,2640.0,2639.8,0.07540805]
[1727756390864,3.78789,2640.0,2639.7,1.6506]
[1727756391065,3.78789,2640.0,2639.8,0.07540805]
[1727756391312,3.78789,2640.0,2639.7,1.6506]
[1727756391605,3.78783,2640.1,2639.7,1.6506]
[1727756391606,3.78783,2640.1,2639.9,0.07537585]
[1727756391813,3.78783,2640.1,2639.8,0.07540805]
[1727756392106,3.78783,2640.1,2639.9,0.07537585]
[1727756392316,3.78755,2640.3,2639.9,0.07537585]
[1727756392481,3.78755,2640.3,2639.7,5.43881]
[1727756392671,3.78755,2640.3,2639.8,0.61922768]
[1727756393305,3.7876,2640.2,2639.8,0.61922768]
[1727756393607,3.78719,2640.5,2639.9,5.31907]
[1727756393805,3.78719,2640.5,2640.1,1.5311]
[1727756394115,3.78719,2640.5,2640.2,0.07516803]
[1727756394607,3.78705,2640.6,2640.2,0.07516803]
[1727756395712,3.78724,2640.5,2640.2,0.07516803]
[1727756397316,3.78705,2640.6,2640.2,0.07516803]
[1727756397525,3.78727,2640.5,2640.2,0.07516803]
[1727756397942,3.78705,2640.6,2640.3,1.6227]
[1727756398306,3.78716,2640.5,2640.4,0.07510365]
[1727756398497,7.57416,2640.6,2640.4,0.07510365]
[1727756398696,7.57417,2640.6,2640.4,0.07510365]
[1727756398903,3.78705,2640.6,2640.4,0.07510365]
[1727756399398,3.78716,2640.5,2640.4,0.07510365]
[1727756399597,3.78705,2640.6,2640.4,0.07510365]
[1727756400104,3.78716,2640.5,2640.4,0.07510365]
[1727756400710,3.7873,2640.4,2640.3,1.6227]
[1727756401112,3.7873,2640.4,2640.3,1.69756737]
[1727756401329,3.7873,2640.4,2640.3,0.07486737]
[1727756401634,5.05339236,2640.4,2640.3,0.07486737]
[1727756401835,5.05339236,2640.4,2640.1,1.5581]
[1727756401836,3.78759,2640.2,2640.1,1.5581]
[1727756402137,3.78759,2640.2,2639.6,14.91673]
[1727756402138,7.57586,2640.0,2639.8,1.5813]
[1727756402353,3.78788,2640.0,2639.8,1.5813]
[1727756402558,3.78838,2639.7,2639.3,1.5813]
[1727756402752,3.7881,2639.9,2639.3,7.94797421]
[1727756403064,3.7881,2639.9,2639.4,3.86447197]
[1727756403412,3.7881,2639.9,2639.4,0.07576197]
[1727756403765,3.7881,2639.9,2639.3,5.44580267]
[1727756403941,3.7881,2639.9,2639.4,0.54458027]
[1727756404114,3.7881,2639.9,2639.4,0.61717685]
[1727756404655,3.78824,2639.8,2639.4,0.61717685]
[1727756405358,3.78798,2640.0,2639.4,4.48161996]
[1727756406053,3.78798,2640.0,2639.5,1.6067]
[1727756406220,3.78783,2640.1,2639.6,4.397242]
[1727756406426,3.78783,2640.1,2639.6,4.46977416]
[1727756408157,3.78783,2640.1,2639.7,1.6022]
[1727756408352,3.78783,2640.1,2639.7,1.67469995]
[1727756409038,7.57569,2640.1,2639.7,1.67469995]
[1727756409431,3.78753,2640.3,2639.7,1.75045503]
[1727756409759,3.78773,2640.1,2639.7,2.36521873]
[1727756410424,3.78762,2640.2,2639.7,2.36521873]
[1727756411156,3.78789,2640.0,2639.7,1.67469995]
[1727756412337,3.78802,2639.9,2639.7,1.67469995]
[1727756413076,3.50236358,2640.1,2639.7,1.67469995]
[1727756413240,3.78816,2639.8,2639.7,0.07249995]
[1727756413761,3.78803,2639.9,2639.4,1.6589]
[1727756413762,3.78831,2639.7,2639.4,1.6589]
[1727756414464,3.78803,2639.9,2639.4,1.6589]
[1727756415125,3.78831,2639.7,2639.4,1.6589]
[1727756416080,7.57616,2639.9,2639.4,1.73466521]
[1727756416629,3.78816,2639.8,2639.4,1.73466521]
[1727756416967,3.78832,2639.7,2639.4,1.6589]
[1727756417665,3.78807,2639.9,2639.4,1.6589]
[1727756417874,3.78807,2639.9,2639.5,0.07576722]
[1727756418170,3.78854,2639.6,2639.4,1.6589]
[1727756419063,3.78842,2639.7,2639.4,1.6589]
[1727756419239,3.78845,2639.6,2639.5,0.07281304]
[1727756419763,3.78842,2639.7,2639.5,0.07281304]
[1727756419941,3.78842,2639.7,2639.2,1.5766]
[1727756420151,3.78842,2639.7,2639.6,0.07278083]
[1727756420349,3.78842,2639.7,2639.2,5.36562]
[1727756420553,3.78842,2639.7,2639.6,0.07278083]
[1727756420754,3.78842,2639.7,2639.2,1.5766]
[1727756421074,3.78842,2639.7,2639.6,0.07281144]
[1727756421279,3.78842,2639.7,2639.2,1.5766]
[1727756421460,3.78842,2639.7,2639.6,0.07281144]
[1727756421651,3.78842,2639.7,2639.2,1.5766]
[1727756421974,3.50236358,2639.8,2639.2,6.28860999]
[1727756422272,3.50236358,2639.8,2639.3,0.07290807]
[1727756422273,3.78819,2639.8,2639.3,0.07290807]
[1727756422584,3.78819,2639.8,2639.2,10.07752999]
[1727756422968,3.78819,2639.8,2639.3,0.07290807]
[1727756423365,3.78819,2639.8,2639.2,6.3643565]
[1727756423573,3.78819,2639.8,2639.4,0.07287586]
[1727756423887,3.78819,2639.8,2639.2,6.3643565]
[1727756423888,3.50236358,2639.9,2639.2,2.5754365]
[1727756424044,3.78839,2639.7,2639.5,0.0729546]
[1727756424463,3.78839,2639.7,2639.2,1.65236651]
[1727756424679,3.78839,2639.7,2639.6,0.07292239]
[1727756424881,3.78839,2639.7,2639.2,1.65236651]
[1727756425483,3.78839,2639.7,2639.3,0.07301903]
[1727756425640,3.78846,2639.6,2639.3,0.07301903]
[1727756425841,3.78846,2639.6,2639.2,1.5766]
[1727756426065,7.29095358,2639.5,2639.4,0.07298681]
[1727756426247,7.29095358,2639.5,2639.3,0.07301903]
[1727756426248,8.45343,2639.4,2639.3,0.07301903]
[1727756426443,8.45343,2639.4,2638.2,8.53257241]
[1727756426444,3.78988,2638.6,2638.2,1.5569]
[1727756426763,7.29214358,2638.7,2638.2,5.42315025]
[1727756426954,7.29214358,2638.7,2638.2,1.5569]
[1727756427364,7.29214358,2638.7,2638.2,5.4231302]
[1727756428449,7.29214358,2638.7,2638.2,1.6327002]
[1727756429114,3.78962,2638.8,2638.2,5.4231302]
[1727756429272,3.78962,2638.8,2638.2,6.34450622]
[1727756429615,3.78975,2638.7,2638.2,6.34450622]
[1727756430012,3.78997,2638.6,2638.2,2.55407622]
[1727756430318,3.79031,2638.4,2638.0,1.5099]
[1727756430467,11.08253358,2638.5,2638.0,1.5099]
[1727756430671,3.7902,2638.4,2638.0,1.5099]
[1727756431170,11.08258358,2638.5,2638.0,1.5099]
[1727756431405,7.29241358,2638.5,2638.0,1.5099]
[1727756431571,7.29241358,2638.5,2638.0,5.37642186]
[1727756432627,7.29241358,2638.5,2638.0,5.30062]
[1727756432911,3.79021,2638.4,2638.0,1.5099]
[1727756433080,3.79033,2638.3,2638.0,1.5099]
[1727756433673,8.92541358,2638.5,2638.0,1.5099]
[1727756434286,8.92541358,2638.5,2638.1,0.11352894]
[1727756434630,12.71552358,2638.5,2638.1,0.11352894]
[1727756435288,3.79017,2638.4,2638.1,0.11352894]
[1727756435624,8.92541358,2638.5,2638.1,0.11352894]
[1727756435780,12.71554358,2638.5,2638.1,0.11352894]
[1727756436202,3.7902,2638.4,2638.1,0.11352894]
[1727756437302,8.92541358,2638.5,2638.1,0.11352894]
[1727756437644,3.79018,2638.4,2638.1,0.11352894]
[1727756442133,3.50236358,2638.5,2638.1,0.11352894]
[1727756442312,7.57999,2638.6,2638.1,0.11352894]
[1727756442849,7.57999,2638.6,2638.0,5.37643575]
[1727756443021,7.57999,2638.6,2638.2,0.11031708]
[1727756443221,3.78996,2638.6,2638.1,0.11035113]
[1727756443431,3.79005,2638.5,2638.3,0.11028303]
[1727756443656,3.79022,2638.4,2638.2,0.11031708]
[1727756443955,3.79005,2638.5,2638.0,1.5099]
[1727756444119,7.58019,2638.5,2638.0,1.58570577]
[1727756444325,3.79005,2638.5,2638.0,1.58570577]
[1727756444638,3.79005,2638.5,2638.0,6.21736858]
[1727756445032,3.79005,2638.5,2638.0,2.42662858]
[1727756445232,3.79005,2638.5,2638.0,6.21734858]
[1727756445748,3.79018,2638.4,2638.0,2.42662858]
[1727756445950,3.79005,2638.5,2638.0,2.42662858]
[1727756446155,7.58018,2638.5,2638.0,2.42662858]
[1727756446358,3.79005,2638.5,2638.0,2.42662858]
[1727756448346,3.79005,2638.5,2638.0,6.21735858]
[1727756448544,3.79005,2638.5,2638.0,2.42662858]
[1727756448737,3.79005,2638.5,2638.0,6.21735858]
[1727756449142,3.79005,2638.5,2638.1,0.11035113]
[1727756450150,3.78997,2638.6,2638.1,4.9127791]
[1727756450351,3.79011,2638.5,2638.1,1.1221991]
[1727756450863,3.79011,2638.5,2638.1,0.11035113]
[1727756451114,3.79021,2638.4,2638.1,0.11035113]
[1727756451374,3.79039,2638.3,2638.1,0.11035113]
[1727756451856,3.79032,2638.3,2638.1,0.11035113]
[1727756452988,9.19887275,2638.3,2638.1,0.11035113]
[1727756453142,5.40844275,2638.3,2638.1,0.11035113]
[1727756453939,5.29396,2638.2,2638.1,0.11035113]
[1727756454146,5.29396,2638.2,2637.7,1.5407]
[1727756454453,3.79083,2638.0,2637.8,0.11046479]
[1727756454660,7.5817,2638.0,2637.8,0.11046479]
[1727756454862,3.79083,2638.0,2637.7,1.5407]
[1727756455044,5.40877275,2638.1,2637.9,0.11043073]
[1727756455258,5.40877275,2638.1,2637.7,1.5407]
[1727756455259,5.40877275,2638.1,2637.8,0.11046479]
[1727756455437,5.40877275,2638.1,2638.0,0.11039667]
[1727756455952,5.40877275,2638.1,2637.7,1.5407]
[1727756456183,5.40877275,2638.1,2637.8,0.11046479]
[1727756456682,5.40877275,2638.1,2637.7,1.5407]
[1727756456866,5.40877275,2638.1,2637.9,0.11043073]
[1727756457067,5.40877275,2638.1,2637.8,0.11046479]
[1727756457269,5.40877275,2638.1,2638.0,0.11039667]
[1727756457442,3.79075,2638.0,2637.9,0.11043073]
[1727756457786,3.79089,2637.9,2637.5,1.603]
[1727756457983,5.40901275,2637.9,2637.5,1.603]
[1727756458976,3.79075,2638.0,2637.5,5.39444]
[1727756459177,3.79075,2638.0,2637.5,2.59742305]
[1727756459380,3.79075,2638.0,2637.5,6.313054]
[1727756459678,3.79075,2638.0,2637.5,6.38887307]
[1727756460953,1.61812275,2638.1,2637.6,3.79119]
[1727756461149,3.78965,2638.8,2638.1,1.5617]
[1727756461455,3.78965,2638.8,2637.7,0.07581411]
[1727756461456,3.78938,2639.0,2638.3,9.14211]
[1727756461765,9.19693275,2639.0,2638.4,0.07579578]
[1727756461978,3.78885,2639.4,2638.7,3.7896]
[1727756462188,9.19432,2639.8,2639.0,3.7893]
[1727756462357,5.40645275,2639.7,2639.1,0.07577499]
[1727756462561,5.40602,2639.8,2638.9,1.5617]
[1727756462562,5.40672275,2639.5,2638.9,1.5617]
[1727756462769,5.40672275,2639.5,2639.0,0.535129]
[1727756462955,1.61812275,2639.5,2639.0,0.535129]
[1727756463284,5.406,2639.8,2639.1,0.07577508]
[1727756463627,3.78832,2639.7,2639.0,0.535129]
[1727756463786,3.78855,2639.6,2639.0,0.535129]
[1727756464392,3.78831,2639.7,2639.1,0.69860022]
[1727756468594,3.78788,2640.0,2639.3,3.78877]
[1727756468747,3.78812,2639.9,2639.3,0.07576814]
[1727756468947,3.78812,2639.9,2639.4,0.10975174]
[1727756472099,3.78816,2639.8,2639.4,0.10975174]
[1727756472422,3.7884,2639.7,2639.4,0.10975174]
[1727756472792,7.57683,2639.7,2639.2,1.5253]
[1727756472996,3.78847,2639.6,2639.5,0.10907439]
[1727756473185,3.78847,2639.6,2639.2,1.5253]
[1727756473383,3.78847,2639.6,2639.5,0.10907439]
[1727756473652,3.78847,2639.6,2639.2,1.5253]
[1727756473811,3.78847,2639.6,2639.5,0.10907439]
[1727756474113,0.8334498,2639.6,2639.2,1.5253]
[1727756474279,3.7884,2639.7,2639.5,0.10907439]
[1727756474480,3.7884,2639.7,2639.2,1.5253]
[1727756474716,3.7884,2639.7,2639.6,0.10904037]
[1727756475017,7.29103292,2639.7,2639.6,0.10904037]
[1727756475186,3.78854,2639.6,2638.9,5.35046]
[1727756475381,8.47471601,2639.7,2639.6,0.10904037]
[1727756475582,4.68631601,2639.7,2639.0,3.7893]
[1727756475804,3.7885,2639.6,2639.0,3.7893]
[1727756476482,3.78871,2639.5,2638.9,1.5611]
[1727756476827,3.78875,2639.4,2638.9,5.35054]
[1727756477118,4.6359816,2639.6,2638.9,5.35054]
[1727756477284,3.78868,2639.5,2638.9,5.42631898]
[1727756477500,3.78874,2639.4,2638.9,1.63687898]
[1727756477837,4.6359816,2639.6,2638.9,1.63687898]
[1727756477838,8.4245616,2639.6,2638.9,5.42631898]
[1727756478066,7.57757,2639.4,2638.9,1.5611]
[1727756478343,3.7889,2639.3,2638.9,1.5611]
[1727756479198,3.7889,2639.3,2639.0,0.10933256]
[1727756480322,3.78874,2639.4,2639.0,0.10933256]
[1727756480495,7.57759,2639.4,2639.0,0.10933256]
[1727756480694,3.7889,2639.3,2639.0,0.10933256]
[1727756480926,5.05823229,2639.4,2639.0,0.10933256]
[1727756481909,3.78874,2639.4,2639.0,0.10933256]
[1727756482212,7.29117292,2639.6,2639.0,3.89863256]
[1727756482416,11.07971292,2639.6,2639.0,3.89863256]
[1727756482623,3.78854,2639.6,2639.0,3.89863256]
[1727756482806,3.78854,2639.6,2639.0,7.68784256]
[1727756483243,3.78853,2639.6,2639.0,3.89854256]
[1727756483939,7.57706,2639.6,2639.0,3.89854256]
[1727756484312,3.78853,2639.6,2639.1,3.78906]
[1727756484507,3.78853,2639.6,2639.2,1.5648]
[1727756484747,3.78861,2639.5,2639.2,1.67409894]
[1727756488425,3.78874,2639.4,2639.2,1.67409894]
[1727756488812,3.78874,2639.4,2639.2,0.10929894]
[1727756489328,3.78874,2639.4,2638.9,1.632]
[1727756489526,3.78874,2639.4,2639.3,0.10927639]
[1727756489724,8.79640032,2639.4,2638.9,1.632]
[1727756489922,8.79640032,2639.4,2639.3,0.10927257]
[1727756490214,3.78892,2639.3,2638.9,1.632]
[1727756492037,3.78912,2639.2,2638.9,1.632]
[1727756494375,3.78912,2639.2,2639.0,0.10941293]
[1727756495231,4.66879203,2639.2,2639.0,0.10941293]
[1727756497469,4.66879203,2639.2,2638.7,5.35114]
[1727756497628,4.66879203,2639.2,2639.1,0.10944397]
[1727756497829,4.66879203,2639.2,2638.7,1.5615]
[1727756498029,4.66879203,2639.2,2639.1,0.10944397]
[1727756498230,4.66879203,2639.2,2638.7,1.5615]
[1727756498576,1.21879032,2639.4,2638.7,1.5615]
[1727756498577,3.78939,2639.0,2638.7,1.5615]
[1727756499564,3.78921,2639.1,2638.7,1.5615]
[1727756499940,3.78909,2639.2,2638.7,5.35114]
[1727756500141,3.78909,2639.2,2638.7,5.42692546]
[1727756502528,3.78909,2639.2,2638.7,1.5615]
[1727756502734,3.78919,2639.1,2638.7,1.5615]
[1727756502955,3.78909,2639.2,2638.7,1.5615]
[1727756503154,7.57821,2639.2,2638.7,1.5615]
[1727756504567,3.78909,2639.2,2638.7,5.35117]
[1727756504781,3.78909,2639.2,2638.7,5.42695551]
[1727756505165,7.57819,2639.2,2638.7,1.63728551]
[1727756505677,3.78931,2639.0,2638.7,1.5615]
[1727756506172,7.57824,2639.2,2638.7,1.5615]
[1727756506837,3.78918,2639.1,2638.7,1.5615]
[1727756509197,3.78918,2639.1,2638.8,0.10971452]
[1727756509393,3.78918,2639.1,2638.7,1.5615]
[1727756509558,3.78918,2639.1,2638.8,0.10971452]
[1727756509761,3.78918,2639.1,2638.7,1.5615]
[1727756509957,3.78918,2639.1,2638.8,0.10971452]
[1727756510196,3.78918,2639.1,2638.7,1.5615]
[1727756510399,3.78918,2639.1,2638.8,0.10971452]
[1727756510587,3.78909,2639.2,2638.7,1.5615]
[1727756510792,3.78933,2639.0,2638.8,0.10971452]
[1727756511203,3.78933,2639.0,2638.7,1.5615]
[1727756511498,3.78933,2639.0,2638.9,0.10968048]
[1727756511701,3.78945,2638.9,2638.8,0.10971452]
[1727756511864,3.78945,2638.9,2638.7,1.5615]
[1727756512215,3.78945,2638.9,2638.2,3.79039]
[1727756512216,3.79019,2638.4,2638.2,1.5822]
[1727756512903,7.58028,2638.5,2637.9,5.4488742]
[1727756513071,3.79019,2638.4,2637.9,2.50618842]
[1727756513266,3.79012,2638.5,2637.9,2.50618842]
[1727756513602,7.58028,2638.5,2637.9,2.50618842]
[1727756513769,3.79019,2638.4,2637.9,2.58199562]
[1727756513962,3.79019,2638.4,2637.9,6.37283562]
[1727756514715,3.79037,2638.3,2637.9,2.50618842]
[1727756514878,3.79019,2638.4,2637.9,6.29706842]
[1727756515272,3.79019,2638.4,2638.0,0.07580726]
[1727756516206,3.79019,2638.4,2637.9,2.58199573]
[1727756516417,3.79019,2638.4,2637.9,6.37285573]
[1727756516908,3.79019,2638.4,2637.9,2.58199573]
[1727756518078,7.58045,2638.4,2637.9,2.58199573]
[1727756518782,7.58045,2638.4,2638.0,1.4889]
[1727756518783,3.79019,2638.4,2638.0,1.4889]
[1727756519269,7.5805,2638.4,2638.0,1.4889]
[1727756519973,7.58045,2638.4,2638.0,1.4889]
[1727756520173,3.79019,2638.4,2638.0,1.4889]
[1727756522688,3.78969,2638.8,2638.2,1.5723]
[1727756523008,3.78969,2638.8,2638.3,0.07579997]
[1727756523208,3.78969,2638.8,2638.4,1.6316]
[1727756523507,9.19668164,2639.0,2638.4,5.42175]
[1727756523684,9.19668164,2639.0,2638.4,5.49754338]
[1727756523880,5.40728164,2639.0,2638.4,5.49754338]
[1727756524087,3.78947,2638.9,2638.5,0.11021492]
[1727756524614,5.40728164,2639.0,2638.5,0.11021492]
[1727756524615,7.57878,2639.0,2638.5,0.11021492]
[1727756524775,3.78938,2639.0,2638.5,0.11021492]
[1727756524974,7.57878,2639.0,2638.5,0.11021492]
[1727756525172,3.78938,2639.0,2638.5,0.11021492]
[1727756525803,3.78938,2639.0,2638.6,1.5283]
[1727756526313,3.78938,2639.0,2638.7,0.11014683]
[1727756527073,3.78912,2639.2,2638.7,0.11014683]
[1727756527301,3.78918,2639.1,2638.7,0.11014683]
[1727756528020,5.40708164,2639.1,2638.7,0.11014683]
[1727756528168,3.78936,2639.0,2638.7,0.11014683]
[1727756528613,5.40737164,2638.9,2638.7,0.11014683]
[1727756528807,3.7896,2638.8,2638.7,0.11014683]
[1727756529014,3.7896,2638.8,2638.3,1.4715]
[1727756529199,5.40800164,2638.5,2638.1,1.4715]
[1727756529779,3.79018,2638.4,2638.1,1.4715]
[1727756530103,3.11400164,2638.5,2638.1,1.4715]
[1727756530311,6.90404164,2638.5,2638.1,1.4715]
[1727756530811,3.11400164,2638.5,2638.1,1.4715]
[1727756531020,3.11400164,2638.5,2637.8,1.4753]
[1727756531021,3.79034,2638.3,2637.8,1.4753]
[1727756531200,1.61790164,2638.3,2637.9,3.79086]
[1727756531410,3.79031,2638.4,2637.9,3.79086]
[1727756532603,3.79031,2638.4,2637.9,3.7908]
[1727756532817,3.79031,2638.4,2637.9,5.05141]
[1727756534585,3.11400164,2638.5,2637.9,5.12721858]
[1727756534788,6.90404164,2638.5,2638.0,3.7907]
[1727756535211,6.78937,2639.0,2638.3,1.4978]
[1727756535212,1.6159,2638.9,2638.3,1.4978]
[1727756535487,0.06603069,2640.2,2638.7,1.4978]
[1727756535488,7.02290164,2639.2,2638.7,1.4978]
[1727756535699,0.70229016,2639.1,2638.7,1.4978]
[1727756536002,3.78925,2639.1,2638.7,1.4978]
[1727756536191,3.78936,2639.0,2638.7,1.4978]
[1727756536392,5.40726164,2639.0,2638.7,1.4978]
[1727756538317,1.61790164,2639.0,2638.7,1.4978]
[1727756539115,1.61790164,2639.0,2638.8,0.10996727]
[1727756539484,1.6159,2639.2,2638.7,1.4978]
[1727756539682,1.61790164,2639.1,2638.9,0.10981069]
[1727756539927,1.61790164,2639.1,2638.8,0.10984473]
[1727756540126,5.40707164,2639.1,2639.0,0.10977666]
[1727756540284,3.78931,2639.0,2638.9,0.10981069]
[1727756540484,3.78949,2638.9,2638.5,1.6052]
[1727756541250,1.61790164,2639.0,2638.5,1.6052]
[1727756541396,3.78955,2638.9,2638.3,5.3184]
[1727756542097,1.61790164,2638.8,2638.3,5.3184]
[1727756543190,1.61790164,2638.8,2638.4,3.79013]
[1727756544719,1.61790164,2638.8,2638.3,5.3184]
[1727756545050,3.18630164,2638.8,2638.3,5.3184]
[1727756546652,3.18630164,2638.8,2638.3,9.10863]
[1727756547346,3.18630164,2638.8,2638.4,3.79016]
[1727756547545,3.18630164,2638.8,2638.3,5.3184]
[1727756547755,3.18630164,2638.8,2638.4,3.79014]
[1727756548255,3.18630164,2638.8,2638.3,5.3184]
[1727756548452,3.18630164,2638.8,2638.4,3.79015]
[1727756548612,1.61790164,2638.6,2638.1,5.3107]
[1727756548820,1.61790164,2638.6,2638.2,3.79045]
[1727756549009,1.61790164,2638.6,2638.0,3.79073]
[1727756549010,1.61790164,2638.4,2638.0,3.79073]
[1727756549227,3.12380164,2638.2,2637.7,5.3113]
[1727756549423,3.12380164,2638.2,2637.7,5.31129]
[1727756550619,3.12380164,2638.2,2637.8,3.79102]
[1727756550818,3.12380164,2638.2,2637.7,9.10238]
[1727756551659,1.5059,2638.2,2637.8,3.79102]